[Event "Late-Titled-Tuesday-Blitz-September-19-2023"]
[Site "Chess.com"]
[Date "2023.09.19"]
[Round "1"]
[White "RamyresCoelho"]
[Black "KChor05TTV"]
[Result "0-1"]
[WhiteElo "2300"]
[BlackElo "2589"]
[TimeControl "180+1"]
[EndTime "14:07:22 PDT"]
[Termination "KChor05TTV won by resignation"]

1. e4 {[%clk 0:02:59]} 1... c5 {[%clk 0:02:50.4]} 2. Nf3 {[%clk 0:02:58.8]} 2...
Nc6 {[%clk 0:02:45.4]} 3. d4 {[%clk 0:02:59]} 3... cxd4 {[%clk 0:02:45]} 4. c3
{[%clk 0:02:59.5]} 4... Nf6 {[%clk 0:02:44.5]} 5. e5 {[%clk 0:02:59.3]} 5... Nd5
{[%clk 0:02:40.6]} 6. cxd4 {[%clk 0:02:54.3]} 6... d6 {[%clk 0:02:38.2]} 7. Nc3
{[%clk 0:02:54.6]} 7... Nxc3 {[%clk 0:02:22.2]} 8. bxc3 {[%clk 0:02:55.5]} 8...
e6 {[%clk 0:02:22.5]} 9. Bd3 {[%clk 0:02:53]} 9... dxe5 {[%clk 0:02:19.9]} 10.
Nxe5 {[%clk 0:02:52.6]} 10... Nxe5 {[%clk 0:02:13.4]} 11. dxe5 {[%clk
0:02:53.5]} 11... Qa5 {[%clk 0:02:13.9]} 12. O-O {[%clk 0:02:50.9]} 12... Qxe5
{[%clk 0:02:08]} 13. Re1 {[%clk 0:02:46.9]} 13... Qa5 {[%clk 0:02:07.8]} 14. Qb3
{[%clk 0:02:41.3]} 14... a6 {[%clk 0:01:55.7]} 15. Be3 {[%clk 0:02:30]} 15...
Bc5 {[%clk 0:01:53.9]} 16. Qc4 {[%clk 0:02:11.9]} 16... Bxe3 {[%clk 0:01:48.7]}
17. Rxe3 {[%clk 0:02:12.8]} 17... O-O {[%clk 0:01:43.7]} 18. Rh3 {[%clk
0:02:00.2]} 18... h6 {[%clk 0:01:39.3]} 19. Qe4 {[%clk 0:01:57.4]} 19... f5
{[%clk 0:01:39.1]} 20. Qh4 {[%clk 0:01:45.2]} 20... Qxc3 {[%clk 0:01:34.9]} 21.
Rb1 {[%clk 0:01:37.2]} 21... Qf6 {[%clk 0:01:35.1]} 22. Qh5 {[%clk 0:01:29.8]}
22... b5 {[%clk 0:01:31.6]} 23. Rg3 {[%clk 0:01:25.6]} 23... Kh7 {[%clk
0:01:27]} 24. Re1 {[%clk 0:01:19.3]} 24... e5 {[%clk 0:01:22.4]} 25. Bb1 {[%clk
0:00:57.9]} 25... e4 {[%clk 0:01:19.6]} 26. Rd1 {[%clk 0:00:51.8]} 26... Be6
{[%clk 0:01:15.9]} 27. h4 {[%clk 0:00:43.4]} 27... Rad8 {[%clk 0:01:12.8]} 28.
Rf1 {[%clk 0:00:41]} 28... Rd2 {[%clk 0:01:06.6]} 29. f3 {[%clk 0:00:36]} 29...
g6 {[%clk 0:01:00.5]} 30. Rxg6 {[%clk 0:00:28.9]} 30... Qxg6 {[%clk 0:01:00.4]}
31. Qxg6+ {[%clk 0:00:29.5]} 31... Kxg6 {[%clk 0:01:01.3]} 32. fxe4 {[%clk
0:00:30.3]} 32... f4 {[%clk 0:00:47.6]} 33. e5+ {[%clk 0:00:29.1]} 33... Bf5
{[%clk 0:00:47.6]} 34. Rxf4 {[%clk 0:00:29]} 34... Rd1+ {[%clk 0:00:47.9]} 35.
Kh2 {[%clk 0:00:28.7]} 35... Rxb1 {[%clk 0:00:47.6]} 36. g4 {[%clk 0:00:29]}
36... Rb2+ {[%clk 0:00:43.2]} 37. Kg3 {[%clk 0:00:29.2]} 37... Rxa2 {[%clk
0:00:41.3]} 38. gxf5+ {[%clk 0:00:27.1]} 38... Rxf5 {[%clk 0:00:42.2]} 39. Rg4+
{[%clk 0:00:23.2]} 39... Kf7 {[%clk 0:00:42.7]} 40. Re4 {[%clk 0:00:20.9]} 40...
Ke6 {[%clk 0:00:39.1]} 41. Kg4 {[%clk 0:00:15.9]} 41... Ra4 {[%clk 0:00:38.1]}
42. h5 {[%clk 0:00:06.3]} 42... Rxe4+ {[%clk 0:00:37.5]} 43. Kh3 {[%clk
0:00:06.4]} 43... Rf3+ {[%clk 0:00:36.8]} 44. Kg2 {[%clk 0:00:06.4]} 44... Rc3
{[%clk 0:00:37.7]} 45. Kf1 {[%clk 0:00:06.3]} 45... Rb4 {[%clk 0:00:38.6]} 46.
Ke1 {[%clk 0:00:06.4]} 46... Rb2 {[%clk 0:00:39.5]} 47. Kd1 {[%clk 0:00:07.3]}
47... Ra3 {[%clk 0:00:40.4]} 48. Kc1 {[%clk 0:00:07.4]} 48... Rg2 {[%clk
0:00:40.3]} 49. Kb1 {[%clk 0:00:07.5]} 49... Re3 {[%clk 0:00:40.7]} 0-1

[Event "Late-Titled-Tuesday-Blitz-September-19-2023"]
[Site "Chess.com"]
[Date "2023.09.19"]
[Round "1"]
[White "AleksanderHnydiuk"]
[Black "Hikaru"]
[Result "0-1"]
[WhiteElo "2508"]
[BlackElo "3246"]
[TimeControl "180+1"]
[EndTime "14:07:24 PDT"]
[Termination "Hikaru won on time"]

1. Nf3 {[%clk 0:03:00.9]} 1... a6 {[%clk 0:02:57.3]} 2. e4 {[%clk 0:02:59.7]}
2... e6 {[%clk 0:02:47.7]} 3. d4 {[%clk 0:02:54.9]} 3... b5 {[%clk 0:02:47.9]}
4. Bd3 {[%clk 0:02:53.9]} 4... c5 {[%clk 0:02:46.7]} 5. c3 {[%clk 0:02:53.6]}
5... Bb7 {[%clk 0:02:46.6]} 6. O-O {[%clk 0:02:53.6]} 6... d6 {[%clk 0:02:47.1]}
7. Qe2 {[%clk 0:02:52.3]} 7... Nd7 {[%clk 0:02:47]} 8. Nbd2 {[%clk 0:02:49.5]}
8... Ne7 {[%clk 0:02:45.7]} 9. Re1 {[%clk 0:02:49.3]} 9... Ng6 {[%clk
0:02:42.5]} 10. Nf1 {[%clk 0:02:48.7]} 10... Be7 {[%clk 0:02:42.4]} 11. a4
{[%clk 0:02:47.1]} 11... c4 {[%clk 0:02:40.1]} 12. Bc2 {[%clk 0:02:46.6]} 12...
O-O {[%clk 0:02:39.5]} 13. b4 {[%clk 0:02:29.5]} 13... cxb3 {[%clk 0:02:29.2]}
14. Bxb3 {[%clk 0:02:29.7]} 14... bxa4 {[%clk 0:02:29.3]} 15. Bxa4 {[%clk
0:02:27.9]} 15... Nb6 {[%clk 0:02:28]} 16. Bc2 {[%clk 0:02:27.3]} 16... a5
{[%clk 0:02:28.4]} 17. Bd3 {[%clk 0:02:10.9]} 17... d5 {[%clk 0:02:23.2]} 18. e5
{[%clk 0:02:04.8]} 18... Qc8 {[%clk 0:02:23.4]} 19. Bd2 {[%clk 0:01:44.2]} 19...
a4 {[%clk 0:02:22.3]} 20. Reb1 {[%clk 0:01:43.3]} 20... Bd8 {[%clk 0:02:21]} 21.
Ne1 {[%clk 0:01:25.1]} 21... Ba6 {[%clk 0:02:20.3]} 22. Nc2 {[%clk 0:01:21.3]}
22... Bxd3 {[%clk 0:02:19.8]} 23. Qxd3 {[%clk 0:01:22.2]} 23... Nc4 {[%clk
0:02:18.5]} 24. Na3 {[%clk 0:01:15.4]} 24... Nxa3 {[%clk 0:02:17.3]} 25. Rxa3
{[%clk 0:01:16.3]} 25... Be7 {[%clk 0:02:17.8]} 26. Ra2 {[%clk 0:01:16.3]} 26...
a3 {[%clk 0:02:15.9]} 27. Bc1 {[%clk 0:01:16]} 27... Ra4 {[%clk 0:02:14.8]} 28.
Ne3 {[%clk 0:00:52.7]} 28... Nf4 {[%clk 0:02:05.1]} 29. Qc2 {[%clk 0:00:51.9]}
29... Qa6 {[%clk 0:02:04.8]} 30. Rba1 {[%clk 0:00:37.3]} 30... Nd3 {[%clk
0:01:45.8]} 31. Qb3 {[%clk 0:00:23.8]} 31... Ra8 {[%clk 0:01:44.1]} 32. Nc2
{[%clk 0:00:21.6]} 32... Nxc1 {[%clk 0:01:41.3]} 33. Rxc1 {[%clk 0:00:20.8]}
33... h5 {[%clk 0:01:41.3]} 34. Rca1 {[%clk 0:00:19.5]} 34... h4 {[%clk
0:01:40.8]} 35. h3 {[%clk 0:00:19.7]} 35... Qd3 {[%clk 0:01:40.1]} 36. Ne1
{[%clk 0:00:15.3]} 36... Qf5 {[%clk 0:01:36.7]} 37. Nc2 {[%clk 0:00:13.5]} 37...
Qd3 {[%clk 0:01:11.3]} 38. Ne1 {[%clk 0:00:13.1]} 38... Qa6 {[%clk 0:01:11.3]}
39. Nc2 {[%clk 0:00:13.1]} 39... Ra5 {[%clk 0:01:11.7]} 40. Nb4 {[%clk
0:00:12.2]} 40... Bxb4 {[%clk 0:01:01.3]} 41. cxb4 {[%clk 0:00:11.7]} 41... Ra4
{[%clk 0:01:00.3]} 42. b5 {[%clk 0:00:11.9]} 42... Qa5 {[%clk 0:00:57.3]} 43. b6
{[%clk 0:00:10.3]} 43... Rb8 {[%clk 0:00:49.2]} 44. b7 {[%clk 0:00:09.5]} 44...
Rb4 {[%clk 0:00:43.3]} 45. Qxa3 {[%clk 0:00:08.9]} 45... Qb6 {[%clk 0:00:43.3]}
46. Qa7 {[%clk 0:00:04.5]} 46... Rxb7 {[%clk 0:00:39.5]} 47. Qxb6 {[%clk
0:00:04.5]} 47... R7xb6 {[%clk 0:00:40.4]} 48. Ra4 {[%clk 0:00:04.6]} 48... Rb2
{[%clk 0:00:39.3]} 49. Ra8+ {[%clk 0:00:03.5]} 49... Kh7 {[%clk 0:00:39.2]} 50.
R8a7 {[%clk 0:00:02.6]} 50... Kg6 {[%clk 0:00:39.1]} 51. R7a4 {[%clk 0:00:02.4]}
51... Rd2 {[%clk 0:00:39.2]} 52. Rc1 {[%clk 0:00:01]} 52... Rbb2 {[%clk
0:00:39.2]} 0-1

[Event "Late-Titled-Tuesday-Blitz-September-19-2023"]
[Site "Chess.com"]
[Date "2023.09.19"]
[Round "1"]
[White "WelshTiger"]
[Black "Sokoloco"]
[Result "0-1"]
[WhiteElo "2384"]
[BlackElo "2677"]
[TimeControl "180+1"]
[EndTime "14:07:29 PDT"]
[Termination "Sokoloco won on time"]

1. e4 {[%clk 0:02:58.5]} 1... d6 {[%clk 0:02:59.2]} 2. d4 {[%clk 0:02:58.4]}
2... g6 {[%clk 0:02:59.9]} 3. Nc3 {[%clk 0:02:58.7]} 3... Bg7 {[%clk 0:03:00.6]}
4. f4 {[%clk 0:02:59.1]} 4... c5 {[%clk 0:02:48.3]} 5. dxc5 {[%clk 0:02:36.8]}
5... Qa5 {[%clk 0:02:47.7]} 6. Bd2 {[%clk 0:02:26.8]} 6... Qxc5 {[%clk
0:02:46.4]} 7. Nf3 {[%clk 0:02:26.9]} 7... Bg4 {[%clk 0:02:39.4]} 8. Bd3 {[%clk
0:02:26.7]} 8... Nc6 {[%clk 0:02:32.3]} 9. h3 {[%clk 0:02:21]} 9... Bxf3 {[%clk
0:02:22.9]} 10. Qxf3 {[%clk 0:02:21.9]} 10... Rc8 {[%clk 0:02:06.4]} 11. O-O-O
{[%clk 0:01:36.2]} 11... Nb4 {[%clk 0:02:02.1]} 12. Kb1 {[%clk 0:01:35]} 12...
Nf6 {[%clk 0:01:44.6]} 13. Rhe1 {[%clk 0:01:32.3]} 13... O-O {[%clk 0:01:42.6]}
14. Be3 {[%clk 0:01:26.8]} 14... Qa5 {[%clk 0:01:39.3]} 15. a3 {[%clk
0:01:20.7]} 15... Nxd3 {[%clk 0:01:23.6]} 16. Rxd3 {[%clk 0:01:20.8]} 16... Nd7
{[%clk 0:01:19.3]} 17. Bd4 {[%clk 0:01:14.5]} 17... Nc5 {[%clk 0:01:14.7]} 18.
Rdd1 {[%clk 0:01:12.8]} 18... Na4 {[%clk 0:00:57.3]} 19. Bxg7 {[%clk 0:01:10.3]}
19... Kxg7 {[%clk 0:00:54.4]} 20. Nxa4 {[%clk 0:01:10.1]} 20... Qxa4 {[%clk
0:00:55.3]} 21. Qd3 {[%clk 0:01:09.6]} 21... Rc5 {[%clk 0:00:48.8]} 22. c3
{[%clk 0:01:09.2]} 22... Kg8 {[%clk 0:00:43.2]} 23. e5 {[%clk 0:01:06.4]} 23...
dxe5 {[%clk 0:00:42.2]} 24. fxe5 {[%clk 0:01:05.8]} 24... e6 {[%clk 0:00:38.7]}
25. Re4 {[%clk 0:01:02.9]} 25... Qc6 {[%clk 0:00:34.5]} 26. Rd2 {[%clk
0:00:53.3]} 26... Rd5 {[%clk 0:00:31.3]} 27. Rd4 {[%clk 0:00:53.6]} 27... Rxe5
{[%clk 0:00:31.9]} 28. Rd8 {[%clk 0:00:41.1]} 28... Qc7 {[%clk 0:00:22.4]} 29.
Rxf8+ {[%clk 0:00:38.8]} 29... Kxf8 {[%clk 0:00:23.3]} 30. Qg3 {[%clk
0:00:29.6]} 30... Qc5 {[%clk 0:00:20.7]} 31. Rd4 {[%clk 0:00:24.8]} 31... Kg7
{[%clk 0:00:18.5]} 32. Ka2 {[%clk 0:00:20.6]} 32... Rd5 {[%clk 0:00:17.5]} 33.
Rb4 {[%clk 0:00:18]} 33... b6 {[%clk 0:00:16.4]} 34. Qf3 {[%clk 0:00:17.3]}
34... Qd6 {[%clk 0:00:16.1]} 35. Rf4 {[%clk 0:00:10.9]} 35... f5 {[%clk
0:00:13.9]} 36. Rc4 {[%clk 0:00:10]} 36... h5 {[%clk 0:00:10]} 37. Qe2 {[%clk
0:00:04.6]} 37... Kf6 {[%clk 0:00:09.2]} 38. Qf2 {[%clk 0:00:02.9]} 38... Rd2
{[%clk 0:00:08.8]} 39. Qh4+ {[%clk 0:00:02.3]} 39... Kf7 {[%clk 0:00:07.8]} 0-1

[Event "Late-Titled-Tuesday-Blitz-September-19-2023"]
[Site "Chess.com"]
[Date "2023.09.19"]
[Round "1"]
[White "DucksParadise"]
[Black "Garmendiarov"]
[Result "1-0"]
[WhiteElo "2644"]
[BlackElo "2363"]
[TimeControl "180+1"]
[EndTime "14:07:32 PDT"]
[Termination "DucksParadise won by resignation"]

1. g3 {[%clk 0:03:00]} 1... Nf6 {[%clk 0:02:56.6]} 2. Bg2 {[%clk 0:02:59]} 2...
g6 {[%clk 0:02:56.4]} 3. Nf3 {[%clk 0:02:57.7]} 3... Bg7 {[%clk 0:02:55.7]} 4.
O-O {[%clk 0:02:57.9]} 4... O-O {[%clk 0:02:55.9]} 5. c4 {[%clk 0:02:58.3]} 5...
c5 {[%clk 0:02:54.5]} 6. d4 {[%clk 0:02:54.1]} 6... cxd4 {[%clk 0:02:48]} 7.
Nxd4 {[%clk 0:02:54]} 7... Nc6 {[%clk 0:02:48.5]} 8. Nc3 {[%clk 0:02:53.3]} 8...
a6 {[%clk 0:02:43.9]} 9. c5 {[%clk 0:02:36.4]} 9... Qa5 {[%clk 0:02:28.1]} 10.
Nb3 {[%clk 0:02:35.9]} 10... Qc7 {[%clk 0:02:28.3]} 11. Bf4 {[%clk 0:02:34.5]}
11... Qd8 {[%clk 0:02:04.4]} 12. Qd2 {[%clk 0:02:07.4]} 12... b6 {[%clk
0:01:57.6]} 13. Na4 {[%clk 0:01:42]} 13... bxc5 {[%clk 0:01:42.5]} 14. Nbxc5
{[%clk 0:01:40.9]} 14... Nh5 {[%clk 0:00:57.3]} 15. Bh6 {[%clk 0:01:35.7]} 15...
Bxh6 {[%clk 0:00:46.3]} 16. Qxh6 {[%clk 0:01:36.6]} 16... Rb8 {[%clk 0:00:46.1]}
17. Bxc6 {[%clk 0:01:26.6]} 17... dxc6 {[%clk 0:00:45.9]} 18. Rfd1 {[%clk
0:01:25.2]} 18... Qc7 {[%clk 0:00:40.4]} 19. Qd2 {[%clk 0:01:22.4]} 19... Bg4
{[%clk 0:00:32.3]} 20. f3 {[%clk 0:01:08]} 20... Bh3 {[%clk 0:00:26]} 21. Qg5
{[%clk 0:00:48.8]} 21... f6 {[%clk 0:00:18.5]} 22. Qh4 {[%clk 0:00:47.6]} 22...
Bc8 {[%clk 0:00:15.6]} 23. Qc4+ {[%clk 0:00:44.4]} 23... Kh8 {[%clk 0:00:13.8]}
24. Kg2 {[%clk 0:00:34.2]} 24... e5 {[%clk 0:00:13.5]} 25. Rd2 {[%clk
0:00:28.8]} 25... Ng7 {[%clk 0:00:11.7]} 26. e4 {[%clk 0:00:24.1]} 26... Qe7
{[%clk 0:00:11.6]} 27. Rad1 {[%clk 0:00:23.4]} 27... Ne6 {[%clk 0:00:11.7]} 28.
Nxe6 {[%clk 0:00:21.8]} 28... Bxe6 {[%clk 0:00:12.6]} 29. Qc5 {[%clk 0:00:21.5]}
29... Qxc5 {[%clk 0:00:11.3]} 30. Nxc5 {[%clk 0:00:22.4]} 30... Bxa2 {[%clk
0:00:11.8]} 31. Nd7 {[%clk 0:00:19]} 31... Bb3 {[%clk 0:00:10.5]} 32. Nxb8
{[%clk 0:00:18.4]} 32... Bxd1 {[%clk 0:00:10.4]} 33. Nxa6 {[%clk 0:00:17.2]}
33... Ba4 {[%clk 0:00:09.3]} 34. Nc5 {[%clk 0:00:17.5]} 34... Bb5 {[%clk
0:00:09.3]} 35. Rd6 {[%clk 0:00:16.2]} 35... Kg7 {[%clk 0:00:08.5]} 36. Ne6+
{[%clk 0:00:15.6]} 36... Kf7 {[%clk 0:00:08.4]} 37. Nxf8 {[%clk 0:00:16.5]}
37... Kxf8 {[%clk 0:00:08.9]} 38. Rd7 {[%clk 0:00:16.9]} 38... h5 {[%clk
0:00:08.4]} 39. Rc7 {[%clk 0:00:16.6]} 39... f5 {[%clk 0:00:07.7]} 40. Kf2
{[%clk 0:00:15.8]} 40... fxe4 {[%clk 0:00:07.5]} 41. fxe4 {[%clk 0:00:16.7]}
41... Ke8 {[%clk 0:00:06.9]} 42. Ke3 {[%clk 0:00:16.8]} 42... Kd8 {[%clk
0:00:07.3]} 43. Rg7 {[%clk 0:00:16.9]} 43... Ke8 {[%clk 0:00:03.2]} 44. Rxg6
{[%clk 0:00:17.3]} 44... Ke7 {[%clk 0:00:03.8]} 45. Rh6 {[%clk 0:00:17.6]} 45...
h4 {[%clk 0:00:03.2]} 46. Rxh4 {[%clk 0:00:17.5]} 1-0

[Event "Late-Titled-Tuesday-Blitz-September-19-2023"]
[Site "Chess.com"]
[Date "2023.09.19"]
[Round "1"]
[White "dcremisi"]
[Black "TheMagician"]
[Result "0-1"]
[WhiteElo "2507"]
[BlackElo "2238"]
[TimeControl "180+1"]
[EndTime "14:07:32 PDT"]
[Termination "TheMagician won by checkmate"]

1. d4 {[%clk 0:03:00.9]} 1... Nf6 {[%clk 0:02:58.8]} 2. c4 {[%clk 0:03:01]} 2...
e6 {[%clk 0:02:54]} 3. Nf3 {[%clk 0:03:01.2]} 3... d5 {[%clk 0:02:54.1]} 4. Nc3
{[%clk 0:03:01.3]} 4... Be7 {[%clk 0:02:52]} 5. cxd5 {[%clk 0:03:01.6]} 5...
exd5 {[%clk 0:02:51.4]} 6. Bg5 {[%clk 0:03:01.6]} 6... c6 {[%clk 0:02:50.3]} 7.
e3 {[%clk 0:03:01.8]} 7... O-O {[%clk 0:02:50.3]} 8. Bd3 {[%clk 0:03:02]} 8...
Re8 {[%clk 0:02:50.5]} 9. Qc2 {[%clk 0:03:02.1]} 9... Ne4 {[%clk 0:02:41.9]} 10.
Bxe4 {[%clk 0:02:57.5]} 10... dxe4 {[%clk 0:02:34]} 11. Bxe7 {[%clk 0:02:31.2]}
11... Qxe7 {[%clk 0:02:32.5]} 12. Nd2 {[%clk 0:02:31.4]} 12... Qg5 {[%clk
0:02:10.8]} 13. g3 {[%clk 0:02:25.3]} 13... Bf5 {[%clk 0:02:07.6]} 14. O-O-O
{[%clk 0:02:22.2]} 14... Nd7 {[%clk 0:02:07]} 15. Rdg1 {[%clk 0:02:20.5]} 15...
h5 {[%clk 0:02:05.3]} 16. Ncxe4 {[%clk 0:02:10.1]} 16... Rxe4 {[%clk 0:01:45.3]}
17. Nxe4 {[%clk 0:02:09.7]} 17... Qg4 {[%clk 0:01:45.3]} 18. f3 {[%clk
0:01:57.8]} 18... Qxf3 {[%clk 0:01:45.2]} 19. Nd2 {[%clk 0:01:57.9]} 19... Qxh1
{[%clk 0:01:41.7]} 20. Rxh1 {[%clk 0:01:55]} 20... Bxc2 {[%clk 0:01:41.4]} 21.
Kxc2 {[%clk 0:01:55.9]} 21... f5 {[%clk 0:01:40.7]} 22. Kd3 {[%clk 0:01:55.1]}
22... Re8 {[%clk 0:01:37.2]} 23. Nc4 {[%clk 0:01:52.6]} 23... Re6 {[%clk
0:01:32.4]} 24. Rc1 {[%clk 0:01:49.2]} 24... g6 {[%clk 0:01:30.4]} 25. Na5
{[%clk 0:01:48.9]} 25... Nf6 {[%clk 0:01:21.2]} 26. Nxb7 {[%clk 0:01:43.3]}
26... Ng4 {[%clk 0:01:19.5]} 27. Re1 {[%clk 0:01:35.6]} 27... Nxh2 {[%clk
0:01:18.1]} 28. Na5 {[%clk 0:01:32.3]} 28... g5 {[%clk 0:01:05.8]} 29. Kc4
{[%clk 0:01:30.7]} 29... Ng4 {[%clk 0:01:02.5]} 30. Kc5 {[%clk 0:01:30]} 30...
Rxe3 {[%clk 0:00:55.3]} 31. Rxe3 {[%clk 0:01:29]} 31... Nxe3 {[%clk 0:00:55.4]}
32. Nxc6 {[%clk 0:01:29.1]} 32... h4 {[%clk 0:00:47.3]} 33. gxh4 {[%clk
0:01:28.9]} 33... gxh4 {[%clk 0:00:46.5]} 34. d5 {[%clk 0:01:21]} 34... Ng4
{[%clk 0:00:25.6]} 35. Ne7+ {[%clk 0:01:19.5]} 35... Kf7 {[%clk 0:00:22.4]} 36.
Nxf5 {[%clk 0:01:19.1]} 36... h3 {[%clk 0:00:22.2]} 37. Kc6 {[%clk 0:01:14.9]}
37... Ne5+ {[%clk 0:00:11.3]} 38. Kc7 {[%clk 0:01:14.8]} 38... h2 {[%clk
0:00:09.2]} 39. Ng3 {[%clk 0:01:14.2]} 39... Kf6 {[%clk 0:00:07.7]} 40. d6
{[%clk 0:01:14]} 40... Kg5 {[%clk 0:00:06.3]} 41. b4 {[%clk 0:01:11.9]} 41...
Kg4 {[%clk 0:00:06]} 42. Nh1 {[%clk 0:01:06.5]} 42... Kf3 {[%clk 0:00:05.3]} 43.
a4 {[%clk 0:01:06.4]} 43... Kg2 {[%clk 0:00:05.3]} 44. b5 {[%clk 0:01:06.6]}
44... Kxh1 {[%clk 0:00:04.5]} 45. a5 {[%clk 0:01:06.1]} 45... Kg2 {[%clk
0:00:04.6]} 46. b6 {[%clk 0:01:03.4]} 46... axb6 {[%clk 0:00:04.5]} 47. axb6
{[%clk 0:01:02.7]} 47... h1=Q {[%clk 0:00:05.1]} 48. b7 {[%clk 0:01:03.1]} 48...
Qh7+ {[%clk 0:00:05]} 49. Kb6 {[%clk 0:01:02.8]} 49... Nd7+ {[%clk 0:00:03.8]}
50. Kc7 {[%clk 0:01:02.8]} 50... Qf7 {[%clk 0:00:04.2]} 51. Kd8 {[%clk 0:01:00]}
51... Kf3 {[%clk 0:00:03.5]} 52. Kc7 {[%clk 0:00:58.6]} 52... Ke4 {[%clk
0:00:03.6]} 53. Kc6 {[%clk 0:00:58.8]} 53... Ke5 {[%clk 0:00:03.4]} 54. Kc7
{[%clk 0:00:59.2]} 54... Kd5 {[%clk 0:00:03.1]} 55. Kd8 {[%clk 0:00:58.1]} 55...
Kxd6 {[%clk 0:00:02.7]} 56. b8=Q+ {[%clk 0:00:58.1]} 56... Nxb8 {[%clk
0:00:02.8]} 57. Kc8 {[%clk 0:00:58.4]} 57... Qc7# {[%clk 0:00:03.3]} 0-1

[Event "Late-Titled-Tuesday-Blitz-September-19-2023"]
[Site "Chess.com"]
[Date "2023.09.19"]
[Round "1"]
[White "Zampronha1971"]
[Black "Mikhail_Golubev"]
[Result "0-1"]
[WhiteElo "2277"]
[BlackElo "2568"]
[TimeControl "180+1"]
[EndTime "14:07:36 PDT"]
[Termination "Mikhail_Golubev won on time"]

1. e4 {[%clk 0:03:00.9]} 1... c5 {[%clk 0:02:59.4]} 2. Nf3 {[%clk 0:03:00]} 2...
d6 {[%clk 0:02:59.6]} 3. d4 {[%clk 0:03:00.7]} 3... cxd4 {[%clk 0:02:59.9]} 4.
Nxd4 {[%clk 0:03:01.5]} 4... Nf6 {[%clk 0:03:00.1]} 5. Nc3 {[%clk 0:03:01.8]}
5... Nc6 {[%clk 0:03:00.5]} 6. Bg5 {[%clk 0:03:01.4]} 6... e6 {[%clk 0:03:00.6]}
7. Qd2 {[%clk 0:03:00.7]} 7... a6 {[%clk 0:03:00.4]} 8. O-O-O {[%clk 0:03:00.9]}
8... Bd7 {[%clk 0:03:00.5]} 9. f4 {[%clk 0:03:00.5]} 9... Be7 {[%clk 0:03:00.3]}
10. Nf3 {[%clk 0:02:58.4]} 10... b5 {[%clk 0:02:59.3]} 11. e5 {[%clk 0:02:47.7]}
11... b4 {[%clk 0:02:57.2]} 12. exf6 {[%clk 0:02:45.4]} 12... bxc3 {[%clk
0:02:57.2]} 13. Qxc3 {[%clk 0:02:46.1]} 13... gxf6 {[%clk 0:02:57.5]} 14. Bh4
{[%clk 0:02:44.6]} 14... Rg8 {[%clk 0:02:56]} 15. Kb1 {[%clk 0:02:34.6]} 15...
Rb8 {[%clk 0:02:48.6]} 16. g3 {[%clk 0:02:32.2]} 16... a5 {[%clk 0:02:36.6]} 17.
Bd3 {[%clk 0:02:26.2]} 17... f5 {[%clk 0:02:21.8]} 18. Bxe7 {[%clk 0:02:23.6]}
18... Nxe7 {[%clk 0:02:14.4]} 19. Rhe1 {[%clk 0:02:22.7]} 19... Qb6 {[%clk
0:02:05.2]} 20. Qb3 {[%clk 0:02:03.6]} 20... a4 {[%clk 0:01:36.5]} 21. Qxb6
{[%clk 0:02:02.6]} 21... Rxb6 {[%clk 0:01:37.1]} 22. a3 {[%clk 0:01:54.8]} 22...
Kf8 {[%clk 0:01:32.9]} 23. Be2 {[%clk 0:01:42.3]} 23... Kg7 {[%clk 0:01:30.9]}
24. Rd4 {[%clk 0:01:39.6]} 24... Rgb8 {[%clk 0:01:27.1]} 25. Ka1 {[%clk
0:01:22.7]} 25... Rxb2 {[%clk 0:01:14.5]} 26. Rxd6 {[%clk 0:01:23.1]} 26... Nd5
{[%clk 0:01:09.9]} 27. Rxd5 {[%clk 0:00:55.3]} 27... exd5 {[%clk 0:01:09.7]} 28.
Nd4 {[%clk 0:00:56.2]} 28... R2b6 {[%clk 0:01:08.2]} 29. Bd3 {[%clk 0:00:55.3]}
29... Kf6 {[%clk 0:01:08.4]} 30. Rd1 {[%clk 0:00:21.5]} 30... Rc8 {[%clk
0:01:00]} 31. Nf3 {[%clk 0:00:17.5]} 31... Be6 {[%clk 0:00:55]} 32. Nd4 {[%clk
0:00:14.5]} 32... h5 {[%clk 0:00:51.3]} 33. Re1 {[%clk 0:00:14.2]} 33... h4
{[%clk 0:00:46.6]} 34. Rg1 {[%clk 0:00:10.5]} 34... hxg3 {[%clk 0:00:44.2]} 35.
hxg3 {[%clk 0:00:11.4]} 35... Rh8 {[%clk 0:00:37.4]} 36. g4 {[%clk 0:00:11.7]}
36... fxg4 {[%clk 0:00:36.4]} 37. f5 {[%clk 0:00:12.2]} 37... Bd7 {[%clk
0:00:36.5]} 38. Rxg4 {[%clk 0:00:11.8]} 38... Rh1+ {[%clk 0:00:36.1]} 39. Ka2
{[%clk 0:00:12.2]} 39... Rhb1 {[%clk 0:00:35.3]} 40. Nb3 {[%clk 0:00:10.8]}
40... R1xb3 {[%clk 0:00:31.3]} 41. cxb3 {[%clk 0:00:09.7]} 41... Rxb3 {[%clk
0:00:29.6]} 42. Bc2 {[%clk 0:00:09.1]} 42... Rf3 {[%clk 0:00:27.6]} 43. Bxa4
{[%clk 0:00:09.2]} 43... Bxf5 {[%clk 0:00:26.6]} 44. Rd4 {[%clk 0:00:07.9]}
44... Ke5 {[%clk 0:00:26.6]} 45. Rd2 {[%clk 0:00:06.5]} 45... d4 {[%clk
0:00:26.2]} 46. Be8 {[%clk 0:00:06.6]} 46... Be6+ {[%clk 0:00:25.2]} 47. Ka1
{[%clk 0:00:05.1]} 47... Rxa3+ {[%clk 0:00:25]} 48. Kb2 {[%clk 0:00:05]} 48...
Rc3 {[%clk 0:00:24]} 0-1